fUSD/lending_fUSD_20251001
["ID","MTS","AMOUNT","RATE_DAILY","PERIOD"]
[388793342,1759362656297,-1986.12,0.00022191,2]
[388793343,1759362656307,-2392.21,0.00022191,2]
[388793344,1759362656316,-500.0,0.00022191,2]
[388793345,1759362656324,-500.0,0.00022191,2]
[388793346,1759362656333,-500.0,0.00022191,2]
[388793347,1759362656342,-3766.76,0.00022191,2]
[388793348,1759362656352,-500.0,0.00022191,2]
[388793349,1759362656361,-500.0,0.00022191,2]
[388793350,1759362656370,-2102.99,0.00022191,2]
[388793351,1759362656379,-500.0,0.00022191,2]
[388793352,1759362656388,-502.58,0.00022191,2]
[388793353,1759362656397,-500.0,0.00022191,2]
[388793354,1759362656412,-500.0,0.00022191,2]
[388793355,1759362656422,-1556.26,0.00022191,2]
[388793356,1759362656431,-1351.0,0.00022191,2]
[388793357,1759362656441,-6015.6,0.00022191,2]
[388793358,1759362656450,-918.42,0.00022191,2]
[388793359,1759362656460,-506.37,0.00022191,2]
[388793360,1759362656469,-3573.75,0.00022191,2]
[388793361,1759362656481,-1785.86,0.00022191,2]
[388793362,1759362656490,-500.0,0.00022191,2]
[388793363,1759362656499,-857.5,0.00022191,2]
[388793364,1759362656508,-500.0,0.00022191,2]
[388793365,1759362656517,-1803.38,0.00022191,2]
[388793366,1759362656527,-500.0,0.00022191,2]
[388793367,1759362656536,-521.68,0.00022191,2]
[388793368,1759362656545,-2138.53,0.00022191,2]
[388793369,1759362656555,-500.0,0.00022191,2]
[388793370,1759362656564,-500.0,0.00022191,2]
[388793371,1759362656573,-3388.62,0.00022191,2]
[388793372,1759362656583,-470.80071195,0.00022191,2]
[388793373,1759362656591,-4468.6,0.00022191,2]
[388793374,1759362656601,-2921.93,0.00022191,2]
[388793375,1759362656611,-6005.72,0.00022191,2]
[388793376,1759362656620,-1619.46,0.00022191,2]
[388793377,1759362656629,-4263.18,0.00022191,2]
[388793378,1759362656638,-596.16,0.00022191,2]
[388793379,1759362656647,-500.0,0.00022191,2]
[388793380,1759362656657,-500.0,0.00022191,2]
[388793381,1759362656666,-500.0,0.00022191,2]
[388793382,1759362656675,-574.10298192,0.00022191,2]
[388793383,1759362656684,-500.0,0.00022191,2]
[388793384,1759362656693,-543.84,0.00022191,2]
[388793385,1759362656702,-318.5899,0.00022191,2]
[388793386,1759362656711,-2290.71,0.00022191,2]
[388793387,1759362656721,-500.0,0.00022191,2]
[388793388,1759362656730,-1679.55,0.00022191,2]
[388793389,1759362656739,-2497.92,0.00022191,2]
[388793390,1759362656748,-500.0,0.00022191,2]
[388793391,1759362656757,-905.43,0.00022191,2]
[388793392,1759362656767,-1319.16,0.00022191,2]
[388793393,1759362656776,-500.0,0.00022191,2]
[388793394,1759362656786,-500.0,0.00022191,2]
[388793395,1759362656795,-500.0,0.00022191,2]
[388793396,1759362656804,-236.24,0.00022191,2]
[388793397,1759362656813,-500.0,0.00022191,2]
[388793398,1759362656823,-2883.28,0.00022191,2]
[388793399,1759362656832,-1862.48,0.00022191,2]
[388793400,1759362656841,-500.0,0.00022191,2]
[388793401,1759362656850,-5973.32,0.00022191,2]
[388793402,1759362656860,-1046.15,0.00022191,2]
[388793403,1759362656868,-7710.0,0.00022191,2]
[388793404,1759362656878,-500.0,0.00022191,2]
[388793405,1759362656887,-3390.31,0.00022191,2]
[388793406,1759362656896,-500.0,0.00022191,2]
[388793407,1759362656905,-500.0,0.00022191,2]
[388793408,1759362656915,-500.0,0.00022191,2]
[388793409,1759362656923,-684.51,0.00022191,2]
[388793410,1759362656932,-798.36,0.00022191,2]
[388793411,1759362656942,-877.57,0.00022191,2]
[388793412,1759362656951,-6908.38,0.00022191,2]
[388793413,1759362656960,-1461.45,0.00022191,2]
[388793414,1759362656970,-500.0,0.00022191,2]
[388793415,1759362656979,-500.0,0.00022191,2]
[388793416,1759362656989,-261.17249554,0.00022191,2]
[388793417,1759362656998,-620.57,0.00022191,2]
[388793418,1759362657007,-1097.13,0.00022191,2]
[388793419,1759362657016,-2034.39,0.00022191,2]
[388793420,1759362657025,-967.51,0.00022191,2]
[388793421,1759362657035,-500.0,0.00022191,2]
[388793422,1759362657044,-500.0,0.00022191,2]
[388793423,1759362657053,-500.0,0.00022191,2]
[388793424,1759362657063,-6141.65,0.00022191,2]
[388793425,1759362657072,-2372.9,0.00022191,2]
[388793426,1759362657081,-2138.66,0.00022191,2]
[388793427,1759362657090,-617.05,0.00022191,2]
[388793428,1759362657099,-2312.38,0.00022191,2]
[388793429,1759362657108,-500.0,0.00022191,2]
[388793430,1759362657118,-500.0,0.00022191,2]
[388793431,1759362657127,-500.0,0.00022191,2]
[388793432,1759362657136,-500.0,0.00022191,2]
[388793433,1759362657145,-4709.96,0.00022191,2]
[388793434,1759362657155,-500.0,0.00022191,2]
[388793435,1759362657164,-2058.63,0.00022191,2]
[388793436,1759362657173,-5644.91,0.00022191,2]
[388793437,1759362657182,-755.86,0.00022191,2]
[388793438,1759362657191,-621.85,0.00022191,2]
[388793439,1759362657200,-500.0,0.00022191,2]
[388793440,1759362657210,-7452.65,0.00022191,2]
[388793441,1759362657219,-500.12,0.00022191,2]
[388793442,1759362657228,-500.0,0.00022191,2]
[388793443,1759362657237,-4657.49,0.00022191,2]
[388793444,1759362657246,-1052.18,0.00022191,2]
[388793445,1759362657255,-4399.55,0.00022191,2]
[388793446,1759362657264,-500.0,0.00022191,2]
[388793447,1759362657273,-500.0,0.00022191,2]
[388793448,1759362657282,-978.64,0.00022191,2]
[388793449,1759362657292,-2732.62,0.00022191,2]
[388793450,1759362657302,-3129.91,0.00022191,2]
[388793451,1759362657311,-983.89,0.00022191,2]
[388793452,1759362657320,-1638.48,0.00022191,2]
[388793453,1759362657329,-500.0,0.00022191,2]
[388793454,1759362657338,-500.0,0.00022191,2]
[388793455,1759362657347,-676.2,0.00022191,2]
[388793456,1759362657357,-531.18,0.00022191,2]
[388793457,1759362657366,-500.0,0.00022191,2]
[388793458,1759362657375,-5607.44,0.00022191,2]
[388793459,1759362657384,-8025.23,0.00022191,2]
[388793460,1759362657393,-6358.04,0.00022191,2]
[388793461,1759362657406,-500.0,0.00022191,2]
[388793462,1759362657415,-1081.69,0.00022191,2]
[388793463,1759362657424,-5348.87,0.00022191,2]
[388793464,1759362657434,-30575.98,0.00022191,2]
[388793465,1759362657444,-500.0,0.00022191,2]
[388793466,1759362657453,-500.0,0.00022191,2]
[388793467,1759362657463,-500.0,0.00022191,2]
[388793468,1759362657473,-500.0,0.00022191,2]
[388793469,1759362657483,-500.0,0.00022191,2]
[388793470,1759362657493,-500.0,0.00022191,2]
[388793471,1759362657502,-2099.83,0.00022191,2]
[388793472,1759362657512,-323.4,0.00022191,2]
[388793473,1759362657521,-2516.56,0.00022191,2]
[388793474,1759362657530,-500.0,0.00022191,2]
[388793475,1759362657539,-500.0,0.00022191,2]
[388793476,1759362657548,-1844.0,0.00022191,2]
[388793477,1759362657557,-754.37,0.00022191,2]
[388793478,1759362657567,-1959.23,0.00022191,2]
[388793479,1759362657576,-3137.78,0.00022191,2]
[388793480,1759362657586,-500.0,0.00022191,2]
[388793481,1759362657595,-2245.26,0.00022191,2]
[388793482,1759362657604,-2019.16,0.00022191,2]
[388793483,1759362657613,-514.87,0.00022191,2]
[388793484,1759362657623,-6197.75,0.00022191,2]
[388793485,1759362657632,-500.0,0.00022191,2]
[388793486,1759362657641,-1664.22,0.00022191,2]
[388793487,1759362657651,-925.37,0.00022191,2]
[388793488,1759362657660,-10447.97,0.00022191,2]
[388793489,1759362657669,-1570.67,0.00022191,2]
[388793490,1759362657678,-6405.86,0.00022191,2]
[388793491,1759362657687,-2900.3,0.00022191,2]
[388793492,1759362657696,-500.0,0.00022191,2]
[388793493,1759362657705,-2560.37,0.00022191,2]
[388793494,1759362657715,-790.09,0.00022191,2]
[388793495,1759362657724,-1361.64,0.00022191,2]
[388793496,1759362657733,-500.0,0.00022191,2]
[388793497,1759362657742,-598.88,0.00022191,2]
[388793498,1759362657751,-4942.17,0.00022191,2]
[388793499,1759362657760,-6517.42,0.00022191,2]
[388793500,1759362657770,-8359.17,0.00022191,2]
[388793501,1759362657779,-1325.66,0.00022191,2]
[388793502,1759362657788,-805.7,0.00022191,2]
[388793503,1759362657797,-834.03,0.00022191,2]
[388793504,1759362657807,-500.0,0.00022191,2]
[388793505,1759362657817,-2717.08,0.00022191,2]
[388793506,1759362657826,-1535.59,0.00022191,2]
[388793507,1759362657836,-3013.31,0.00022191,2]
[388793508,1759362657845,-500.0,0.00022191,2]
[388793509,1759362657854,-7631.39,0.00022191,2]
[388793510,1759362657863,-613.48,0.00022191,2]
[388793511,1759362657872,-2961.79,0.00022191,2]
[388793512,1759362657881,-3655.32,0.00022191,2]
[388793513,1759362657890,-754.86,0.00022191,2]
[388793514,1759362657899,-1349.46,0.00022191,2]
[388793515,1759362657908,-3562.23,0.00022191,2]
[388793516,1759362657918,-5909.65,0.00022191,2]
[388793517,1759362657927,-2116.81,0.00022191,2]
[388793518,1759362657937,-506.94,0.00022191,2]
[388793519,1759362657946,-500.0,0.00022191,2]
[388793520,1759362657955,-3199.27,0.00022191,2]
[388793521,1759362657964,-500.0,0.00022191,2]
[388793522,1759362657973,-2770.08,0.00022191,2]
[388793523,1759362657983,-7315.82,0.00022191,2]
[388793524,1759362657992,-2762.91,0.00022191,2]
[388793525,1759362658001,-6984.67,0.00022191,2]
[388793526,1759362658011,-958.14,0.00022191,2]
[388793527,1759362658019,-500.0,0.00022191,2]
[388793528,1759362658029,-500.0,0.00022191,2]
[388793529,1759362658039,-2066.48,0.00022191,2]
[388793530,1759362658048,-500.0,0.00022191,2]
[388793531,1759362658058,-500.0,0.00022191,2]
[388793532,1759362658066,-500.0,0.00022191,2]
[388793533,1759362658077,-1692.55,0.00022191,2]
[388793534,1759362658086,-844.55,0.00022191,2]
[388793535,1759362658095,-500.0,0.00022191,2]
[388793536,1759362658104,-2704.99,0.00022191,2]
[388793537,1759362658114,-3042.27,0.00022191,2]
[388793538,1759362658124,-500.0,0.00022191,2]
[388793539,1759362658133,-1570.24,0.00022191,2]
[388793540,1759362658142,-2957.82,0.00022191,2]
[388793541,1759362658152,-2112.82,0.00022191,2]
[388793542,1759362658161,-1693.04,0.00022191,2]
[388793543,1759362658171,-2144.41,0.00022191,2]
[388793544,1759362658180,-500.0,0.00022191,2]
[388793545,1759362658190,-1711.11,0.00022191,2]
[388793546,1759362658199,-500.0,0.00022191,2]
[388793547,1759362658208,-500.0,0.00022191,2]
[388793548,1759362658218,-609.35,0.00022191,2]
[388793549,1759362658227,-500.0,0.00022191,2]
[388793550,1759362658236,-500.0,0.00022191,2]
[388793551,1759362658245,-405.45710218,0.00022191,2]
[388793552,1759362658255,-6851.58,0.00022191,2]
[388793553,1759362658264,-799.42,0.00022191,2]
[388793554,1759362658274,-766.89,0.00022191,2]
[388793555,1759362658283,-500.0,0.00022191,2]
[388793556,1759362658293,-500.0,0.00022191,2]
[388793557,1759362658302,-1980.75,0.00022191,2]
[388793558,1759362658311,-405.28755219,0.00022191,2]
[388793559,1759362658320,-3590.55,0.00022191,2]
[388793560,1759362658330,-546.04,0.00022191,2]
[388793561,1759362658340,-500.0,0.00022191,2]
[388793562,1759362658349,-500.0,0.00022191,2]
[388793563,1759362658359,-333.23426761,0.00022191,2]
[388793564,1759362658368,-1941.89,0.00022191,2]
[388793565,1759362658377,-755.74,0.00022191,2]
[388793566,1759362658387,-500.0,0.00022191,2]
[388793567,1759362658397,-1294.23,0.00022191,2]
[388793568,1759362658410,-4714.76,0.00022191,2]
[388793569,1759362658419,-3225.33,0.00022191,2]
[388793570,1759362658429,-13701.78,0.00022191,2]
[388793571,1759362658438,-1519.63,0.00022191,2]
[388793572,1759362658447,-893.0,0.00022191,2]
[388793573,1759362658459,-1753.11,0.00022191,2]
[388793574,1759362658468,-4944.15,0.00022191,2]
[388793575,1759362658477,-2647.17,0.00022191,2]
[388793576,1759362658488,-537.34,0.00022191,2]
[388793577,1759362658498,-500.0,0.00022191,2]
[388793578,1759362658508,-786.03,0.00022191,2]
[388793579,1759362658517,-5047.54,0.00022191,2]
[388793580,1759362658527,-1109.7,0.00022191,2]
[388793581,1759362658536,-500.0,0.00022191,2]
[388793582,1759362658547,-12839.4,0.00022191,2]
[388793583,1759362658556,-500.0,0.00022191,2]
[388793584,1759362658566,-1080.58,0.00022191,2]
[388793585,1759362658575,-3927.97,0.00022191,2]
[388793586,1759362658585,-500.0,0.00022191,2]
[388793587,1759362658753,-2440.26,0.00022191,2]
[388793588,1759362658771,-1726.18,0.00022191,2]
[388793589,1759362658780,-3774.25,0.00022191,2]
[388793590,1759362658790,-1192.69,0.00022191,2]
[388793591,1759362658800,-2448.5,0.00022191,2]
[388793592,1759362658810,-500.0,0.00022191,2]
[388793593,1759362658819,-1022.92,0.00022191,2]
[388793594,1759362658829,-500.0,0.00022191,2]
[388793595,1759362658838,-2203.11,0.00022191,2]
[388793596,1759362658847,-2844.39,0.00022191,2]
[388793597,1759362658857,-1170.62,0.00022191,2]
[388793598,1759362658866,-500.0,0.00022191,2]
[388793599,1759362658875,-4369.62,0.00022191,2]
[388793600,1759362658885,-500.0,0.00022191,2]
[388793601,1759362658894,-2902.27,0.00022191,2]
[388793602,1759362658904,-500.0,0.00022191,2]
[388793603,1759362658914,-2156.29,0.00022191,2]
[388793604,1759362658924,-500.0,0.00022191,2]
[388793605,1759362658934,-500.0,0.00022191,2]
[388793606,1759362658945,-500.0,0.00022191,2]
[388793607,1759362658955,-1533.21,0.00022191,2]
[388793608,1759362658964,-6249.12,0.00022191,2]
[388793609,1759362658976,-15165.03,0.00022191,2]
[388793610,1759362658985,-4255.09,0.00022191,2]
[388793611,1759362658995,-7888.21,0.00022191,2]
[388793612,1759362659004,-500.0,0.00022191,2]
[388793613,1759362659014,-500.0,0.00022191,2]
[388793614,1759362659023,-11707.92,0.00022191,2]
[388793615,1759362659033,-500.0,0.00022191,2]
[388793616,1759362659042,-6236.58,0.00022191,2]
[388793617,1759362659051,-500.0,0.00022191,2]
[388793618,1759362659061,-500.0,0.00022191,2]
[388793619,1759362659070,-10185.58,0.00022191,2]
[388793620,1759362659079,-7746.7,0.00022191,2]
[388793621,1759362659088,-3678.61,0.00022191,2]
[388793622,1759362659098,-6476.68,0.00022191,2]
[388793623,1759362659107,-1729.41,0.00022191,2]
[388793624,1759362659116,-500.0,0.00022191,2]
[388793625,1759362659125,-500.0,0.00022191,2]
[388793626,1759362659134,-1262.89,0.00022191,2]
[388793627,1759362659143,-1775.36,0.00022191,2]
[388793628,1759362659153,-2735.11,0.00022191,2]
[388793629,1759362659162,-3184.89,0.00022191,2]
[388793630,1759362659171,-3394.33,0.00022191,2]
[388793631,1759362659181,-500.0,0.00022191,2]
[388793632,1759362659190,-6422.93,0.00022191,2]
[388793633,1759362659200,-500.0,0.00022191,2]
[388793634,1759362659209,-2423.95,0.00022191,2]
[388793635,1759362659218,-572.3,0.00022191,2]
[388793636,1759362659227,-783.2,0.00022191,2]
[388793637,1759362659236,-500.0,0.00022191,2]
[388793638,1759362659246,-500.0,0.00022191,2]
[388793639,1759362659256,-534.21,0.00022191,2]
[388793640,1759362659265,-7212.29,0.00022191,2]
[388793641,1759362659275,-525.92,0.00022191,2]
[388793642,1759362659284,-2284.87,0.00022191,2]
[388793643,1759362659294,-959.21,0.00022191,2]
[388793644,1759362659303,-4053.05,0.00022191,2]
[388793645,1759362659313,-691.6,0.00022191,2]
[388793646,1759362659323,-2916.36,0.00022191,2]
[388793647,1759362659333,-500.0,0.00022191,2]
[388793648,1759362659342,-1060.61,0.00022191,2]
[388793649,1759362659352,-500.0,0.00022191,2]
[388793650,1759362659362,-4229.97,0.00022191,2]
[388793651,1759362659372,-517.87,0.00022191,2]
[388793652,1759362659382,-500.0,0.00022191,2]
[388793653,1759362659392,-1419.72,0.00022191,2]
[388793654,1759362659402,-1834.36,0.00022191,2]
[388793655,1759362659415,-22460.71,0.00022191,2]
[388793656,1759362659425,-500.0,0.00022191,2]
[388793657,1759362659434,-500.0,0.00022191,2]
[388793658,1759362659443,-794.78,0.00022191,2]
[388793659,1759362659454,-3216.47,0.00022191,2]
[388793660,1759362659464,-500.0,0.00022191,2]
[388793661,1759362659473,-500.0,0.00022191,2]
[388793662,1759362659483,-782.75,0.00022191,2]
[388793663,1759362659493,-500.0,0.00022191,2]
[388793664,1759362659503,-4670.23,0.00022191,2]
[388793665,1759362659512,-11258.74,0.00022191,2]
[388793666,1759362659523,-408.49620568,0.00022191,2]
[388793667,1759362659532,-500.0,0.00022191,2]
[388793668,1759362659541,-500.0,0.00022191,2]
[388793669,1759362659551,-22932.32,0.00022191,2]
[388793670,1759362659560,-1035.68,0.00022191,2]
[388793671,1759362659569,-500.0,0.00022191,2]
[388793672,1759362659579,-4688.79,0.00022191,2]
[388793673,1759362659589,-1605.2,0.00022191,2]
[388793674,1759362659598,-745.17,0.00022191,2]
[388793675,1759362659607,-2927.17,0.00022191,2]
[388793676,1759362659616,-500.0,0.00022191,2]
[388793677,1759362659625,-500.0,0.00022191,2]
[388793678,1759362659635,-1275.32,0.00022191,2]
[388793679,1759362659644,-1106.74,0.00022191,2]
[388793680,1759362659653,-1282.84,0.00022191,2]
[388793681,1759362659663,-626.37,0.00022191,2]
[388793682,1759362659672,-500.0,0.00022191,2]
[388793683,1759362659682,-150.0,0.00022196,2]
[388793684,1759362659691,-150.0,0.00022196,2]
[388793685,1759362659700,-500.0,0.00022196,2]
[388793686,1759362659709,-150.0,0.00022196,2]
[388793687,1759362659718,-150.0,0.00022196,2]
[388793688,1759362659728,-275.0,0.00022196,2]
[388793689,1759362659738,-150.0,0.00022196,2]
[388793690,1759362659748,-747.0,0.00022196,2]
[388793691,1759362659757,-150.0,0.00022196,2]
[388793692,1759362659766,-500.0,0.00022196,2]
[388793693,1759362659776,-150.0,0.00022196,2]
[388793694,1759362659786,-176.28519401,0.00022196,2]
[388793695,1759362659796,-150.0,0.00022196,2]
[388793696,1759362659805,-500.0,0.00022196,2]
[388793697,1759362659814,-150.0,0.00022196,2]
[388793698,1759362659824,-500.0,0.00022196,2]
[388793699,1759362659833,-150.0,0.00022196,2]
[388793700,1759362659842,-4601.15,0.000222,7]
[388793701,1759362659853,-1000.0,0.000222,2]
[388793702,1759362659862,-657.6758,0.000222,2]
[388793703,1759362659871,-1406.5263,0.000222,2]
[388793704,1759362659881,-484.7709,0.000222,2]
[388793705,1759362659891,-280971.07172947,0.00022264,2]
[388793706,1759362659901,-1214.69594654,0.00022274,2]
[388793707,1759362659910,-2755.92415771,0.00022274,2]
[388793708,1759362659919,-286.9628837,0.00022286,2]
[388793709,1759362659929,-167.5068971,0.0002231,2]
[388793710,1759362659939,-1271.76,0.00022324,2]
[388793711,1759362659949,-318.58991,0.0002236,2]
[388793712,1759362659959,-1214.69594654,0.00022365,2]
[388793713,1759362659969,-2755.92415771,0.00022365,2]
[388793714,1759362659979,-3222.74022874,0.000224,2]
[388793715,1759362659988,-1090.0,0.00022401,2]
[388793716,1759362659998,-1214.69594654,0.00022456,2]
[388793717,1759362660010,-2755.92415771,0.00022456,2]
[388793718,1759362660020,-1240.47,0.00022464,2]
[388793719,1759362660030,-857.09,0.00022464,2]
[388793720,1759362660039,-696.07,0.00022464,2]
[388793721,1759362660049,-500.0,0.00022464,2]
[388793722,1759362660059,-500.0,0.00022464,2]
[388793723,1759362660068,-1089.24,0.00022464,2]
[388793724,1759362660078,-500.0,0.00022464,2]
[388793725,1759362660087,-1076.76,0.00022464,2]
[388793726,1759362660097,-500.0,0.00022464,2]
[388793727,1759362660106,-500.0,0.00022464,2]
[388793728,1759362660116,-500.0,0.00022464,2]
[388793729,1759362660126,-500.0,0.00022464,2]
[388793730,1759362660135,-500.0,0.00022464,2]
[388793731,1759362660144,-500.0,0.00022464,2]
[388793732,1759362660154,-221.38738927,0.00022464,2]
[388793733,1759362660164,-809.26,0.00022464,2]
[388793734,1759362660174,-500.0,0.00022464,2]
[388793735,1759362660183,-2040.45,0.00022464,2]
[388793736,1759362660193,-1105.25,0.00022464,2]
[388793737,1759362660203,-777.51,0.00022464,2]
[388793738,1759362660213,-2071.96,0.00022464,2]
[388793739,1759362660222,-500.0,0.00022464,2]
[388793740,1759362660232,-500.0,0.00022464,2]
[388793741,1759362660243,-500.0,0.00022464,2]
[388793742,1759362660252,-500.0,0.00022464,2]
[388793743,1759362660261,-755.54,0.00022464,2]
[388793744,1759362660271,-3199.44,0.00022464,2]
[388793745,1759362660281,-1721.96,0.00022464,2]
[388793746,1759362660290,-11237.17,0.00022464,2]
[388793747,1759362660300,-9811.42,0.00022464,2]
[388793748,1759362660309,-7990.43,0.00022464,2]
[388793749,1759362660319,-5765.4,0.00022464,2]
[388793750,1759362660329,-5196.97,0.00022464,2]
[388793751,1759362660338,-2508.04,0.00022464,2]
[388793752,1759362660348,-2135.37,0.00022464,2]
[388793753,1759362660357,-12105.27,0.00022464,2]
[388793754,1759362660366,-2745.66,0.00022464,2]
[388793755,1759362660376,-7560.14,0.00022464,2]
[388793756,1759362660385,-863.04,0.00022464,2]
[388793757,1759362660394,-2181.49,0.00022464,2]
[388793758,1759362660407,-2956.51,0.00022464,2]
[388793759,1759362660416,-1000.0,0.00022464,2]
[388793760,1759362660426,-500.0,0.00022465,2]
[388793761,1759362660436,-974.62,0.00022465,2]
[388793762,1759362660446,-2237.86,0.00022465,2]
[388793763,1759362660456,-4301.95,0.00022465,2]
[388793764,1759362660465,-500.0,0.00022465,2]
[388793765,1759362660474,-541.66225118,0.00022465,2]
[388793766,1759362660484,-788.75,0.00022465,2]
[388793767,1759362660494,-1230.76,0.00022465,2]
[388793768,1759362660504,-500.0,0.00022465,2]
[388793769,1759362660513,-500.0,0.00022465,2]
[388793770,1759362660523,-500.0,0.00022465,2]
[388793771,1759362660532,-500.0,0.00022465,2]
[388793772,1759362660542,-500.0,0.00022465,2]
[388793773,1759362660551,-1765.58,0.00022465,2]
[388793774,1759362660561,-500.0,0.00022465,2]
[388793775,1759362660570,-500.0,0.00022465,2]
[388793776,1759362660579,-500.0,0.00022465,2]
[388793777,1759362660589,-500.0,0.00022465,2]
[388793778,1759362660598,-500.0,0.00022465,2]
[388793779,1759362660608,-568.27,0.00022465,2]
[388793780,1759362660617,-568.27,0.00022465,2]
[388793781,1759362660626,-850.19,0.00022465,2]
[388793782,1759362660635,-746.02,0.00022465,2]
[388793783,1759362660645,-746.02,0.00022465,2]
[388793784,1759362660654,-500.0,0.00022465,2]
[388793785,1759362660663,-500.0,0.00022465,2]
[388793786,1759362660673,-500.0,0.00022465,2]
[388793787,1759362660684,-500.0,0.00022465,2]
[388793788,1759362660694,-500.0,0.00022465,2]
[388793789,1759362660707,-798.65,0.00022465,2]
[388793790,1759362660717,-1376.05,0.00022465,2]
[388793791,1759362660726,-568.41,0.00022465,2]
[388793792,1759362660735,-500.0,0.00022465,2]
[388793793,1759362660744,-500.0,0.00022465,2]
[388793794,1759362660754,-500.0,0.00022465,2]
[388793795,1759362660764,-162.66838347,0.00022465,2]
[388793796,1759362660773,-500.0,0.00022465,2]
[388793797,1759362660783,-500.0,0.00022465,2]
[388793798,1759362660792,-1936.47,0.00022465,2]
[388793799,1759362660801,-607.62,0.00022465,2]
[388793800,1759362660810,-500.0,0.00022465,2]
[388793801,1759362660820,-599.83,0.00022465,2]
[388793802,1759362660829,-574.84,0.00022465,2]
[388793803,1759362660837,-160.05176572,0.00022465,2]
[388793804,1759362660846,-725.19,0.00022465,2]
[388793805,1759362660855,-500.0,0.00022465,2]
[388793806,1759362660864,-639.77929744,0.00022465,2]
[388793807,1759362660873,-455.54219411,0.00022465,2]
[388793808,1759362660882,-500.0,0.00022465,2]
[388793809,1759362660892,-500.0,0.00022465,2]
[388793810,1759362660900,-500.0,0.00022465,2]
[388793811,1759362660909,-500.0,0.00022465,2]
[388793812,1759362660918,-500.0,0.00022465,2]
[388793813,1759362660927,-500.0,0.00022465,2]
[388793814,1759362660937,-500.0,0.00022465,2]
[388793815,1759362660945,-500.0,0.00022465,2]
[388793816,1759362660954,-500.0,0.00022465,2]
[388793817,1759362660963,-500.0,0.00022465,2]
[388793818,1759362660972,-500.0,0.00022465,2]
[388793819,1759362660981,-1301.0,0.00022465,2]
[388793820,1759362661326,-645.55616527,0.00022465,2]
[388793821,1759362661336,-388.05583318,0.00022465,2]
[388793822,1759362661346,-697.5,0.00022465,2]
[388793823,1759362661355,-706.14,0.00022465,2]
[388793824,1759362661365,-500.0,0.00022465,2]
[388793825,1759362661374,-500.0,0.00022465,2]
[388793826,1759362661383,-500.0,0.00022465,2]
[388793827,1759362661392,-539.62,0.00022465,2]
[388793828,1759362661404,-151.0,0.00022465,7]
[388793829,1759362661418,-500.0,0.00022465,2]
[388793830,1759362661427,-151.0,0.00022465,7]
[388793831,1759362661436,-605.51,0.00022465,2]
[388793832,1759362661447,-500.0,0.00022465,2]
[388793833,1759362661456,-558.42,0.00022465,2]
[388793834,1759362661465,-500.0,0.00022465,2]
[388793835,1759362661474,-151.0,0.00022465,7]
[388793836,1759362661485,-151.0,0.00022465,7]
[388793837,1759362661494,-940.85,0.00022465,2]
[388793838,1759362661503,-500.0,0.00022465,2]
[388793839,1759362661512,-594.17,0.00022465,2]
[388793840,1759362661522,-500.0,0.00022465,2]
[388793841,1759362661531,-555.32,0.00022465,2]